fUST/lending_fUST_20251216
["ID","MTS","AMOUNT","RATE_DAILY","PERIOD"]
[398583240,1765857045484,-500.0,0.00010958,2]
[398583241,1765857045494,-500.0,0.00010958,2]
[398583242,1765857045503,-500.0,0.00010958,2]
[398583243,1765857045512,-500.0,0.00010958,2]
[398583244,1765857045522,-500.0,0.00010958,2]
[398583245,1765857045532,-500.0,0.00010958,2]
[398583246,1765857045542,-500.0,0.00010958,2]
[398583247,1765857045551,-500.0,0.00010958,2]
[398583248,1765857045561,-500.0,0.00010958,2]
[398583249,1765857045570,-500.0,0.00010958,2]
[398583250,1765857045579,-500.0,0.00010958,2]
[398583251,1765857045588,-500.0,0.00010958,2]
[398583252,1765857045597,-2047.92,0.00010958,2]
[398583253,1765857045606,-500.0,0.00010958,2]
[398583254,1765857045616,-1419.58,0.00010958,2]
[398583255,1765857045625,-500.0,0.00010958,2]
[398583256,1765857045634,-2858.67,0.00010958,2]
[398583257,1765857045643,-500.0,0.00010958,2]
[398583258,1765857045653,-915.74,0.00010958,2]
[398583259,1765857045662,-500.0,0.00010958,2]
[398583260,1765857045672,-561.34,0.00010958,2]
[398583261,1765857045681,-862.14,0.00010958,2]
[398583262,1765857045691,-500.0,0.00010958,2]
[398583263,1765857045699,-728.64,0.00010958,2]
[398583264,1765857045709,-500.0,0.00010958,2]
[398583265,1765857045718,-1196.22,0.00010958,2]
[398583266,1765857045728,-500.0,0.00010958,2]
[398583267,1765857045737,-764.95,0.00010958,2]
[398583268,1765857045747,-500.0,0.00010958,2]
[398583269,1765857045756,-500.0,0.00010958,2]
[398583270,1765857045765,-1723.48,0.00010958,2]
[398583271,1765857045774,-500.0,0.00010958,2]
[398583272,1765857045783,-795.49,0.00010958,2]
[398583273,1765857045793,-500.0,0.00010958,2]
[398583274,1765857045802,-500.0,0.00010958,2]
[398583275,1765857045811,-500.0,0.00010958,2]
[398583276,1765857045821,-579.03,0.00010958,2]
[398583277,1765857045830,-527.94,0.00010958,2]
[398583278,1765857045839,-852.9,0.00010958,2]
[398583279,1765857045849,-500.0,0.00010958,2]
[398583280,1765857045858,-613.42,0.00010958,2]
[398583281,1765857045867,-1741.83,0.00010958,2]
[398583282,1765857045876,-500.0,0.00010958,2]
[398583283,1765857045885,-500.0,0.00010958,2]
[398583284,1765857045894,-579.96,0.00010958,2]
[398583285,1765857045903,-500.0,0.00010958,2]
[398583287,1765857045912,-500.0,0.00010958,2]
[398583289,1765857045923,-500.0,0.00010958,2]
[398583291,1765857045932,-500.0,0.00010958,2]
[398583293,1765857045941,-882.7,0.00010958,2]
[398583295,1765857045950,-500.0,0.00010958,2]
[398583297,1765857045959,-909.29,0.00010958,2]
[398583299,1765857045968,-500.0,0.00010958,2]
[398583301,1765857045978,-302.01513032,0.00010958,2]
[398583303,1765857045987,-500.0,0.00010958,2]
[398583305,1765857045997,-500.0,0.00010958,2]
[398583307,1765857046006,-500.0,0.00010958,2]
[398583309,1765857046015,-500.0,0.00010958,2]
[398583310,1765857046025,-500.0,0.00010958,2]
[398583312,1765857046035,-500.0,0.00010958,2]
[398583314,1765857046045,-500.0,0.00010958,2]
[398583316,1765857046054,-500.0,0.00010958,2]
[398583318,1765857046063,-500.0,0.00010958,2]
[398583320,1765857046072,-1389.03,0.00010958,2]
[398583321,1765857046081,-652.64,0.00010958,2]
[398583323,1765857046090,-500.0,0.00010958,2]
[398583325,1765857046100,-500.0,0.00010958,2]
[398583327,1765857046109,-516.50797706,0.00010958,2]
[398583329,1765857046119,-500.0,0.00010958,2]
[398583331,1765857046130,-500.0,0.00010958,2]
[398583332,1765857046140,-500.0,0.00010958,2]
[398583334,1765857046149,-863.06,0.00010958,2]
[398583336,1765857046157,-946.95,0.00010958,2]
[398583338,1765857046167,-500.0,0.00010958,2]
[398583340,1765857046177,-752.63,0.00010958,2]
[398583342,1765857046186,-500.0,0.00010958,2]
[398583344,1765857046195,-500.0,0.00010958,2]
[398583346,1765857046206,-500.0,0.00010958,2]
[398583347,1765857046215,-500.0,0.00010958,2]
[398583349,1765857046225,-1824.47,0.00010958,2]
[398583351,1765857046233,-631.43,0.00010958,2]
[398583353,1765857046242,-548.39,0.00010958,2]
[398583355,1765857046251,-500.0,0.00010958,2]
[398583357,1765857046259,-500.0,0.00010958,2]
[398583358,1765857046269,-5069.0,0.00010958,2]
[398583359,1765857046278,-500.0,0.00010958,2]
[398583361,1765857046287,-869.38,0.00010958,2]
[398583362,1765857046296,-500.0,0.00010958,2]
[398583363,1765857046305,-1418.86,0.00010958,2]
[398583365,1765857046314,-500.0,0.00010958,2]
[398583367,1765857046323,-500.0,0.00010958,2]
[398583369,1765857046332,-500.0,0.00010958,2]
[398583370,1765857046342,-500.0,0.00010958,2]
[398583371,1765857046350,-500.0,0.00010958,2]
[398583372,1765857046359,-1398.62,0.00010958,2]
[398583373,1765857046368,-2490.08,0.00010958,2]
[398583374,1765857046377,-500.0,0.00010958,2]
[398583375,1765857046386,-500.0,0.00010958,2]
[398583376,1765857046395,-500.0,0.00010958,2]
[398583377,1765857046404,-886.06,0.00010958,2]
[398583378,1765857046412,-500.0,0.00010958,2]
[398583379,1765857046421,-555.44,0.00010958,2]
[398583380,1765857046430,-500.0,0.00010958,2]
[398583381,1765857046440,-500.0,0.00010958,2]
[398583382,1765857046449,-886.48,0.00010958,2]
[398583383,1765857046458,-528.18,0.00010958,2]
[398583384,1765857046466,-1144.03,0.00010958,2]
[398583385,1765857046475,-1839.21,0.00010958,2]
[398583386,1765857046485,-500.0,0.00010958,2]
[398583387,1765857046494,-500.0,0.00010958,2]
[398583388,1765857046502,-760.81,0.00010958,2]
[398583389,1765857046511,-500.0,0.00010958,2]
[398583390,1765857046521,-500.0,0.00010958,2]
[398583391,1765857046530,-500.0,0.00010958,2]
[398583392,1765857046539,-578.54,0.00010958,2]
[398583393,1765857046548,-500.0,0.00010958,2]
[398583394,1765857046559,-500.0,0.00010958,2]
[398583395,1765857046568,-500.0,0.00010958,2]
[398583396,1765857046577,-456.49822604,0.00010958,2]
[398583397,1765857046587,-525.22,0.00010958,2]
[398583398,1765857046597,-1799.91,0.00010958,2]
[398583399,1765857046607,-500.0,0.00010958,2]
[398583400,1765857046616,-1395.69,0.00010958,2]
[398583401,1765857046625,-500.0,0.00010958,2]
[398583402,1765857046634,-500.0,0.00010958,2]
[398583403,1765857046645,-500.0,0.00010958,2]
[398583404,1765857046655,-500.0,0.00010958,2]
[398583405,1765857046664,-2489.6,0.00010958,2]
[398583406,1765857046674,-500.0,0.00010958,2]
[398583407,1765857046683,-500.0,0.00010958,2]
[398583408,1765857046692,-500.0,0.00010958,2]
[398583409,1765857046702,-500.0,0.00010958,2]
[398583410,1765857046711,-500.0,0.00010958,2]
[398583411,1765857046721,-500.0,0.00010958,2]
[398583412,1765857046730,-3564.58,0.00010958,2]
[398583413,1765857046740,-1851.38,0.00010958,2]
[398583414,1765857046750,-1892.77,0.00010958,2]
[398583415,1765857046760,-500.0,0.00010958,2]
[398583416,1765857046769,-500.0,0.00010958,2]
[398583417,1765857046778,-625.7,0.00010958,2]
[398583418,1765857046788,-554.05,0.00010958,2]
[398583419,1765857046798,-614.05,0.00010958,2]
[398583420,1765857046807,-500.0,0.00010958,2]
[398583421,1765857046816,-1268.17,0.00010958,2]
[398583422,1765857046825,-500.0,0.00010958,2]
[398583423,1765857046836,-500.0,0.00010958,2]
[398583424,1765857046846,-500.0,0.00010958,2]
[398583425,1765857046855,-500.0,0.00010958,2]
[398583426,1765857046865,-500.0,0.00010958,2]
[398583427,1765857046874,-500.0,0.00010958,2]
[398583428,1765857046884,-2548.3,0.00010958,2]
[398583429,1765857046893,-964.39,0.00010958,2]
[398583430,1765857046904,-500.0,0.00010958,2]
[398583431,1765857046914,-500.0,0.00010958,2]
[398583432,1765857046924,-500.0,0.00010958,2]
[398583433,1765857046933,-2757.29,0.00010958,2]
[398583434,1765857046943,-921.12,0.00010958,2]
[398583435,1765857046952,-1379.13,0.00010958,2]
[398583436,1765857046962,-1281.57,0.00010958,2]
[398583437,1765857046973,-500.0,0.00010958,2]
[398583438,1765857046982,-500.0,0.00010958,2]
[398583439,1765857046992,-228.935932,0.00010958,2]
[398583440,1765857047002,-500.0,0.00010958,2]
[398583441,1765857047011,-555.13855977,0.00010958,2]
[398583442,1765857047020,-500.0,0.00010958,2]
[398583443,1765857047029,-500.0,0.00010958,2]
[398583444,1765857047039,-500.0,0.00010958,2]
[398583445,1765857047049,-591.0,0.00010958,2]
[398583446,1765857047058,-500.0,0.00010958,2]
[398583447,1765857047068,-500.0,0.00010958,2]
[398583448,1765857047079,-621.24,0.00010958,2]
[398583449,1765857047088,-500.0,0.00010958,2]
[398583450,1765857047097,-500.0,0.00010958,2]
[398583451,1765857047108,-568.71668082,0.00010958,2]
[398583452,1765857047118,-858.92,0.00010958,2]
[398583453,1765857047130,-604.25,0.00010958,2]
[398583454,1765857047140,-601.93,0.00010958,2]
[398583455,1765857047151,-1724.77,0.00010958,2]
[398583456,1765857047161,-500.0,0.00010958,2]
[398583457,1765857047171,-1883.58,0.00010958,2]
[398583458,1765857047181,-500.0,0.00010958,2]
[398583459,1765857047191,-500.0,0.00010958,2]
[398583460,1765857047200,-897.25,0.00010958,2]
[398583461,1765857047213,-1210.79,0.00010958,2]
[398583462,1765857047223,-1351.77,0.00010958,2]
[398583463,1765857047233,-500.0,0.00010958,2]
[398583464,1765857047244,-773.94,0.00010958,2]
[398583465,1765857047254,-500.0,0.00010958,2]
[398583466,1765857047264,-724.47,0.00010958,2]
[398583467,1765857047273,-500.0,0.00010958,2]
[398583468,1765857047283,-1559.66,0.00010958,2]
[398583469,1765857047292,-500.0,0.00010958,2]
[398583470,1765857047301,-500.0,0.00010958,2]
[398583471,1765857047310,-658.19,0.00010958,2]
[398583472,1765857047319,-901.9,0.00010958,2]
[398583473,1765857047329,-500.0,0.00010958,2]
[398583474,1765857047339,-500.0,0.00010958,2]
[398583475,1765857047348,-1664.36,0.00010958,2]
[398583476,1765857047357,-500.0,0.00010958,2]
[398583477,1765857047367,-500.0,0.00010958,2]
[398583478,1765857047376,-540.02,0.00010958,2]
[398583479,1765857047385,-1404.56,0.00010958,2]
[398583480,1765857047394,-1280.6,0.00010958,2]
[398583481,1765857047403,-500.0,0.00010958,2]
[398583482,1765857047412,-500.0,0.00010958,2]
[398583483,1765857047421,-577.11,0.00010958,2]
[398583484,1765857047586,-517.8,0.00010958,2]
[398583485,1765857047601,-326.15579934,0.00010958,2]
[398583486,1765857047611,-500.0,0.00010958,2]
[398583487,1765857047620,-851.34,0.00010958,2]
[398583488,1765857047629,-500.0,0.00010958,2]
[398583489,1765857047639,-500.0,0.00010958,2]
[398583490,1765857047648,-1225.41,0.00010958,2]
[398583491,1765857047657,-500.0,0.00010958,2]
[398583492,1765857047667,-500.0,0.00010958,2]
[398583493,1765857047676,-500.0,0.00010958,2]
[398583494,1765857047686,-500.0,0.00010958,2]
[398583495,1765857047695,-6779.98,0.00010958,2]
[398583496,1765857047704,-500.0,0.00010958,2]
[398583497,1765857047714,-500.0,0.00010958,2]
[398583498,1765857047725,-500.0,0.00010958,2]
[398583499,1765857047734,-500.0,0.00010958,2]
[398583500,1765857047744,-500.0,0.00010958,2]
[398583501,1765857047754,-500.0,0.00010958,2]
[398583502,1765857047763,-500.0,0.00010958,2]
[398583503,1765857047772,-500.0,0.00010958,2]
[398583504,1765857047781,-879.62,0.00010958,2]
[398583505,1765857047790,-849.34,0.00010958,2]
[398583506,1765857047799,-500.0,0.00010958,2]
[398583507,1765857047808,-4220.16,0.00010958,2]
[398583508,1765857047817,-500.0,0.00010958,2]
[398583509,1765857047826,-500.0,0.00010958,2]
[398583510,1765857047836,-500.0,0.00010958,2]
[398583511,1765857047845,-500.0,0.00010958,2]
[398583512,1765857047855,-500.0,0.00010958,2]
[398583513,1765857047864,-2541.48,0.00010958,2]
[398583514,1765857047873,-500.0,0.00010958,2]
[398583515,1765857047883,-618.0,0.00010958,2]
[398583516,1765857047892,-1330.94,0.00010958,2]
[398583517,1765857047902,-502.75,0.00010958,2]
[398583518,1765857047911,-500.0,0.00010958,2]
[398583519,1765857047921,-500.0,0.00010958,2]
[398583520,1765857047930,-1721.89,0.00010958,2]
[398583521,1765857047940,-563.58820603,0.00010958,2]
[398583522,1765857047949,-369.07530141,0.00010958,2]
[398583523,1765857047958,-500.0,0.00010958,2]
[398583524,1765857047968,-1471.73,0.00010958,2]
[398583525,1765857047977,-1794.66,0.00010958,2]
[398583526,1765857047987,-500.0,0.00010958,2]
[398583527,1765857047996,-500.0,0.00010958,2]
[398583528,1765857048006,-1436.2,0.00010958,2]
[398583529,1765857048015,-919.0,0.00010958,2]
[398583530,1765857048025,-1483.78,0.00010958,2]
[398583531,1765857048034,-500.0,0.00010958,2]
[398583532,1765857048044,-9283.55,0.00010958,2]
[398583533,1765857048055,-1109.0,0.00010958,2]
[398583534,1765857048064,-500.0,0.00010958,2]
[398583535,1765857048074,-930.78,0.00010958,2]
[398583536,1765857048084,-700.85,0.00010958,2]
[398583537,1765857048093,-500.0,0.00010958,2]
[398583538,1765857048102,-500.0,0.00010958,2]
[398583539,1765857048111,-2453.55,0.00010958,2]
[398583540,1765857048123,-707.6,0.00010958,2]
[398583541,1765857048133,-536.25,0.00010958,2]
[398583542,1765857048142,-500.0,0.00010958,2]
[398583543,1765857048151,-500.0,0.00010958,2]
[398583544,1765857048161,-990.55,0.00010958,2]
[398583545,1765857048171,-500.0,0.00010958,2]
[398583546,1765857048181,-2349.49,0.00010958,2]
[398583547,1765857048190,-2196.03,0.00010958,2]
[398583548,1765857048200,-439.09559903,0.00010958,2]
[398583549,1765857048209,-500.0,0.00010958,2]
[398583550,1765857048218,-500.0,0.00010958,2]
[398583551,1765857048228,-1420.86,0.00010958,2]
[398583552,1765857048238,-1354.29,0.00010958,2]
[398583553,1765857048248,-500.0,0.00010958,2]
[398583554,1765857048258,-1566.76,0.00010958,2]
[398583555,1765857048267,-500.0,0.00010958,2]
[398583556,1765857048277,-1789.22,0.00010958,2]
[398583557,1765857048286,-500.0,0.00010958,2]
[398583558,1765857048296,-975.67,0.00010958,2]
[398583559,1765857048309,-997.09,0.00010958,2]
[398583560,1765857048328,-1344.17,0.00010958,2]
[398583561,1765857048348,-600.75,0.00010958,2]
[398583562,1765857048368,-500.0,0.00010958,2]
[398583563,1765857048379,-503.61403407,0.00010958,2]
[398583564,1765857048388,-500.0,0.00010958,2]
[398583565,1765857048397,-500.0,0.00010958,2]
[398583566,1765857048406,-4842.15,0.00010958,2]
[398583567,1765857048416,-938.39,0.00010958,2]
[398583568,1765857048426,-500.0,0.00010958,2]
[398583569,1765857048436,-513.63,0.00010958,2]
[398583570,1765857048445,-1372.69,0.00010958,2]
[398583571,1765857048455,-500.0,0.00010958,2]
[398583572,1765857048465,-500.0,0.00010958,2]
[398583573,1765857048477,-500.0,0.00010958,2]
[398583574,1765857048488,-1192.19,0.00010958,2]
[398583575,1765857048497,-500.0,0.00010958,2]
[398583576,1765857048507,-500.0,0.00010958,2]
[398583577,1765857048516,-2748.55,0.00010958,2]
[398583578,1765857048525,-825.5,0.00010958,2]
[398583579,1765857048541,-708.11,0.00010958,2]
[398583580,1765857048550,-2322.09,0.00010958,2]
[398583581,1765857048560,-414.61968344,0.00010958,2]
[398583582,1765857048569,-2125.4,0.00010958,2]
[398583583,1765857048578,-500.0,0.00010958,2]
[398583584,1765857048587,-500.0,0.00010958,2]
[398583585,1765857048597,-500.0,0.00010958,2]
[398583586,1765857048607,-6830.61,0.00010958,2]
[398583587,1765857048616,-8377.94,0.00010958,2]
[398583588,1765857048625,-500.0,0.00010958,2]
[398583589,1765857048634,-260.03748416,0.00010958,2]
[398583590,1765857048643,-2121.87,0.00010958,2]
[398583591,1765857048653,-500.0,0.00010958,2]
[398583592,1765857048663,-500.0,0.00010958,2]
[398583593,1765857048672,-858.84,0.00010958,2]
[398583594,1765857048681,-945.29,0.00010958,2]
[398583595,1765857048691,-1092.05,0.00010958,2]
[398583596,1765857048700,-580.26,0.00010958,2]
[398583597,1765857048709,-500.0,0.00010958,2]
[398583598,1765857048719,-500.0,0.00010958,2]
[398583599,1765857048729,-500.0,0.00010958,2]
[398583600,1765857048738,-500.0,0.00010958,2]
[398583601,1765857048748,-2445.72,0.00010958,2]
[398583602,1765857048757,-500.0,0.00010958,2]
[398583603,1765857048769,-3903.36,0.00010958,2]
[398583604,1765857048777,-593.42461992,0.00010958,2]
[398583605,1765857048786,-537.08,0.00010958,2]
[398583606,1765857048796,-618.36,0.00010958,2]
[398583607,1765857048805,-500.0,0.00010958,2]
[398583608,1765857048814,-4243.55,0.00010958,2]
[398583609,1765857048823,-228.87189027,0.00010958,2]
[398583610,1765857048834,-500.0,0.00010958,2]
[398583611,1765857048843,-500.0,0.00010958,2]
[398583612,1765857048852,-577.43517345,0.00010958,2]
[398583613,1765857048862,-500.0,0.00010958,2]
[398583614,1765857048871,-1422.62,0.00010958,2]
[398583615,1765857048880,-800.38,0.00010958,2]
[398583616,1765857048890,-1202.09,0.00010958,2]
[398583617,1765857048899,-799.6,0.00010958,2]
[398583618,1765857048909,-520.25,0.00010958,2]
[398583619,1765857048919,-500.0,0.00010958,2]
[398583620,1765857048927,-14584.18,0.00010958,2]
[398583621,1765857048937,-500.0,0.00010958,2]
[398583622,1765857048947,-500.0,0.00010958,2]
[398583623,1765857048956,-2341.35,0.00010958,2]
[398583624,1765857048966,-500.0,0.00010958,2]
[398583625,1765857048975,-614.63,0.00010958,2]
[398583626,1765857048985,-500.0,0.00010958,2]
[398583627,1765857048994,-2042.99,0.00010958,2]
[398583628,1765857049004,-3921.7,0.00010958,2]
[398583629,1765857049013,-500.0,0.00010958,2]
[398583630,1765857049023,-2154.94,0.00010958,2]
[398583631,1765857049032,-1164.37,0.00010958,2]
[398583632,1765857049041,-498.69685249,0.00010958,2]
[398583633,1765857049051,-314.11997387,0.00010958,2]
[398583634,1765857049060,-1452.17,0.00010958,2]
[398583635,1765857049069,-500.0,0.00010958,2]
[398583636,1765857049078,-500.0,0.00010958,2]
[398583637,1765857049087,-940.07,0.00010958,2]
[398583638,1765857049096,-3354.89,0.00010958,2]
[398583639,1765857049106,-885.63,0.00010958,2]
[398583640,1765857049115,-500.0,0.00010958,2]
[398583641,1765857049128,-500.0,0.00010958,2]
[398583642,1765857049137,-583.17,0.00010958,2]
[398583643,1765857049146,-934.17,0.00010958,2]
[398583644,1765857049156,-500.0,0.00010958,2]
[398583645,1765857049167,-500.0,0.00010958,2]
[398583646,1765857049175,-500.0,0.00010958,2]
[398583647,1765857049184,-2662.12,0.00010958,2]
[398583648,1765857049193,-1389.33,0.00010958,2]
[398583649,1765857049203,-2691.53,0.00010958,2]
[398583650,1765857049213,-500.0,0.00010958,2]
[398583651,1765857049222,-500.0,0.00010958,2]
[398583652,1765857049231,-500.0,0.00010958,2]
[398583653,1765857049241,-500.0,0.00010958,2]
[398583654,1765857049250,-947.29,0.00010958,2]
[398583655,1765857049260,-500.0,0.00010958,2]
[398583656,1765857049269,-500.0,0.00010958,2]
[398583657,1765857049279,-1434.18,0.00010958,2]
[398583658,1765857049288,-1332.18,0.00010958,2]
[398583659,1765857049297,-500.0,0.00010958,2]
[398583660,1765857049307,-607.29,0.00010958,2]
[398583661,1765857049316,-403.7932363,0.00010958,2]
[398583662,1765857049325,-500.0,0.00010958,2]
[398583663,1765857049335,-500.0,0.00010958,2]
[398583664,1765857049345,-500.0,0.00010958,2]
[398583665,1765857049354,-500.0,0.00010958,2]
[398583666,1765857049363,-500.0,0.00010958,2]
[398583667,1765857049372,-3493.92,0.00010958,2]
[398583668,1765857049382,-500.0,0.00010958,2]
[398583669,1765857049391,-297.93408391,0.00010958,2]
[398583670,1765857049401,-500.0,0.00010958,2]
[398583671,1765857049410,-500.0,0.00010958,2]
[398583672,1765857049419,-1734.78,0.00010958,2]
[398583673,1765857049428,-529.53,0.00010958,2]
[398583674,1765857049437,-306.41066771,0.00010958,2]
[398583675,1765857049446,-415.08703929,0.00010958,2]
[398583676,1765857049455,-500.0,0.00010958,2]
[398583677,1765857049464,-1497.62,0.00010958,2]
[398583678,1765857049473,-1890.34,0.00010958,2]
[398583679,1765857049483,-1724.14,0.00010958,2]
[398583680,1765857049493,-1321.15,0.00010958,2]
[398583681,1765857049503,-500.0,0.00010958,2]
[398583682,1765857049513,-500.0,0.00010958,2]
[398583683,1765857049523,-500.0,0.00010958,2]
[398583684,1765857049539,-627.84,0.00010958,2]
[398583685,1765857049548,-1136.33,0.00010958,2]
[398583686,1765857049558,-500.0,0.00010958,2]
[398583687,1765857049567,-500.0,0.00010958,2]
[398583688,1765857049577,-2584.7,0.00010958,2]
[398583689,1765857049587,-500.0,0.00010958,2]
[398583690,1765857049596,-500.0,0.00010958,2]
[398583691,1765857049605,-906.3,0.00010958,2]
[398583692,1765857049614,-523.47,0.00010958,2]
[398583693,1765857049623,-500.0,0.00010958,2]
[398583694,1765857049632,-500.0,0.00010958,2]
[398583695,1765857049641,-500.0,0.00010958,2]
[398583696,1765857049651,-860.33,0.00010958,2]
[398583697,1765857049660,-1103.9,0.00010958,2]
[398583698,1765857049669,-526.2,0.00010958,2]
[398583699,1765857049678,-500.0,0.00010958,2]
[398583700,1765857049688,-625.36,0.00010958,2]
[398583701,1765857049697,-500.0,0.00010958,2]
[398583702,1765857049706,-500.0,0.00010958,2]
[398583703,1765857049714,-500.0,0.00010958,2]
[398583704,1765857049724,-500.0,0.00010958,2]
[398583705,1765857049733,-500.0,0.00010958,2]
[398583706,1765857049742,-3387.17,0.00010958,2]
[398583707,1765857049751,-838.05,0.00010958,2]
[398583708,1765857049761,-500.0,0.00010958,2]
[398583709,1765857049770,-500.0,0.00010958,2]
[398583710,1765857049779,-717.42,0.00010958,2]
[398583711,1765857049788,-359.39350625,0.00010958,2]
[398583712,1765857049797,-500.0,0.00010958,2]
[398583713,1765857049807,-11122.08,0.00010958,2]
[398583714,1765857049816,-1435.24,0.00010958,2]
[398583715,1765857049825,-500.0,0.00010958,2]
[398583716,1765857049834,-500.0,0.00010958,2]
[398583717,1765857049843,-645.68,0.00010958,2]
[398583718,1765857049852,-22080.53,0.00010958,2]
[398583719,1765857049861,-3719.53,0.00010958,2]
[398583720,1765857049870,-500.0,0.00010958,2]
[398583721,1765857049880,-835.99,0.00010958,2]
[398583722,1765857049889,-1808.12,0.00010958,2]
[398583723,1765857049898,-500.0,0.00010958,2]
[398583724,1765857049908,-500.0,0.00010958,2]
[398583725,1765857049917,-500.0,0.00010958,2]
[398583726,1765857049927,-8246.11,0.00010958,2]
[398583727,1765857049936,-1665.52,0.00010958,2]
[398583728,1765857049946,-500.0,0.00010958,2]
[398583729,1765857050011,-500.0,0.00010958,2]
[398583730,1765857050021,-500.0,0.00010958,2]
[398583731,1765857050030,-500.0,0.00010958,2]
[398583732,1765857050040,-505.05,0.00010958,2]
[398583733,1765857050049,-500.0,0.00010958,2]
[398583734,1765857050058,-500.0,0.00010958,2]
[398583735,1765857050066,-184.2447986,0.00010958,2]
[398583736,1765857050075,-5019.38,0.00010958,2]
[398583737,1765857050084,-688.63,0.00010958,2]
[398583738,1765857050093,-980.38,0.00010958,2]
[398583739,1765857050103,-2863.98,0.00010958,2]
[398583740,1765857050112,-2333.27,0.00010958,2]
[398583741,1765857050125,-500.0,0.00010958,2]
[398583742,1765857050135,-500.0,0.00010958,2]
[398583743,1765857050144,-500.0,0.00010958,2]
[398583744,1765857050153,-500.0,0.00010958,2]
[398583745,1765857050162,-884.98,0.00010958,2]
[398583746,1765857050171,-2011.13,0.00010958,2]
[398583747,1765857050180,-500.0,0.00010958,2]
[398583748,1765857050190,-561.14,0.00010958,2]
[398583749,1765857050199,-1161.7,0.00010958,2]
[398583750,1765857050208,-5555.9,0.00010958,2]
[398583751,1765857050218,-500.0,0.00010958,2]
[398583752,1765857050227,-1243.71,0.00010958,2]
[398583753,1765857050236,-227.09648395,0.00010958,2]
[398583754,1765857050245,-35354.14,0.00010958,2]
[398583755,1765857050254,-500.0,0.00010958,2]
[398583756,1765857050264,-3963.15,0.00010958,2]
[398583757,1765857050273,-580.9026792,0.00010958,2]
[398583758,1765857050282,-9588.87,0.00010958,2]
[398583759,1765857050292,-500.0,0.00010958,2]
[398583760,1765857050301,-1419.14,0.00010958,2]
[398583761,1765857050311,-500.0,0.00010958,2]
[398583762,1765857050321,-1172.55,0.00010958,2]
[398583763,1765857050331,-500.0,0.00010958,2]
[398583764,1765857050340,-500.0,0.00010958,2]
[398583765,1765857050351,-2089.03,0.00010958,2]
[398583766,1765857050360,-500.0,0.00010958,2]
[398583767,1765857050370,-2257.39,0.00010958,2]
[398583768,1765857050379,-1097.79,0.00010958,2]
[398583769,1765857050388,-1115.43,0.00010958,2]
[398583770,1765857050398,-1115.43,0.00010958,2]
[398583771,1765857050407,-1115.43,0.00010958,2]
[398583772,1765857050418,-1115.43,0.00010958,2]
[398583773,1765857050427,-1991.38,0.00010958,2]
[398583774,1765857050436,-1115.43,0.00010958,2]
[398583775,1765857050445,-841.22,0.00010958,2]
[398583776,1765857050454,-1115.43,0.00010958,2]
[398583777,1765857050464,-1115.43,0.00010958,2]